bitfinex/quotes_ETHUSD_20250403
["timestamp","ask_amount","ask_price","bid_price","bid_amount"]
[1743646329545,0.55,1829.8,1829.4,0.7574]
[1743646329769,0.55,1829.8,1829.3,5.627]
[1743646329994,4.37315,1829.4,1828.8,0.7574]
[1743646330162,4.3736,1829.2,1828.9,0.27319377]
[1743646330575,4.37385,1829.1,1828.9,0.27319377]
[1743646331075,4.37397,1829.0,1828.6,11.722]
[1743646331274,4.37374,1829.1,1828.6,5.76441702]
[1743646331487,8.74771,1829.1,1828.6,5.6966804]
[1743646331676,4.37406,1829.0,1828.6,5.642]
[1743646333413,4.37406,1829.0,1828.6,5.69668035]
[1743646333589,4.37406,1829.0,1828.6,10.07161035]
[1743646334105,4.37406,1829.0,1828.6,5.69668035]
[1743646334313,4.37406,1829.0,1828.6,5.642]
[1743646334607,4.37422,1828.9,1828.6,5.642]
[1743646334805,4.37445,1828.8,1828.3,4.37543]
[1743646334999,4.3747,1828.7,1828.3,5.631]
[1743646335398,7.37369,1829.2,1828.4,4.37541]
[1743646335603,3.0,1829.2,1828.8,4.37432]
[1743646335804,3.8001,1829.3,1828.9,4.37408]
[1743646336005,4.37278,1829.5,1829.0,4.37393]
[1743646336299,3.0,1829.4,1829.1,0.12320587]
[1743646336701,5.16825,1829.6,1829.2,4.37349]
[1743646336916,0.55,1829.8,1829.3,0.98326293]
[1743646337231,4.3724,1829.7,1829.3,0.12260053]
[1743646337424,4.37279,1829.5,1829.3,0.12260053]
[1743646337587,8.19391,1829.4,1829.3,0.12260053]
[1743646337787,4.37357,1829.2,1829.0,0.17077352]
[1743646338413,8.74728,1829.2,1829.0,0.17077352]
[1743646338623,8.74728,1829.2,1828.7,5.2351468]
[1743646338927,8.74728,1829.2,1828.8,0.12252797]
[1743646340233,4.37357,1829.2,1828.8,0.12252797]
[1743646340382,8.7473,1829.2,1828.8,0.12252797]
[1743646341250,4.37357,1829.2,1828.8,0.12252797]
[1743646341449,4.37357,1829.2,1828.8,4.55162226]
[1743646341603,4.37326,1829.3,1828.8,4.55162226]
[1743646341808,4.37326,1829.3,1828.8,8.92590226]
[1743646342140,4.37326,1829.3,1828.8,4.55148226]
[1743646342322,4.3735,1829.2,1828.8,0.12252797]
[1743646342522,4.37374,1829.1,1828.8,0.12252797]
[1743646343260,4.37397,1829.0,1828.8,0.29336215]
[1743646343457,4.37421,1828.9,1828.8,0.29336215]
[1743646343833,5.249028,1828.9,1828.8,0.29336215]
[1743646344175,4.37421,1828.9,1828.8,0.29336215]
[1743646344473,4.37397,1829.0,1828.8,0.29336215]
[1743646344768,4.37397,1829.0,1828.8,0.12252797]
[1743646344932,4.37421,1828.9,1828.8,0.12252797]
[1743646345134,4.37421,1828.9,1828.6,0.17083418]
[1743646345336,4.37421,1828.9,1828.7,0.10388439]
[1743646345541,4.37421,1828.9,1828.6,0.17083418]
[1743646345748,4.37445,1828.8,1828.7,0.125013]
[1743646345979,4.37445,1828.8,1828.5,6.3182173]
[1743646346176,4.37445,1828.8,1828.7,0.12513025]
[1743646346328,4.37445,1828.8,1828.5,6.3182173]
[1743646346329,4.37445,1828.8,1828.6,0.29650732]
[1743646346865,4.3739,1829.1,1828.6,0.94089581]
[1743646347069,7.3735,1829.2,1828.7,4.37466]
[1743646347387,7.3735,1829.2,1828.8,0.18020606]
[1743646348032,7.3735,1829.2,1828.8,0.1255311]
[1743646348033,4.37375,1829.1,1828.8,0.1255311]
[1743646348568,4.37375,1829.1,1828.9,0.8067]
[1743646348770,7.3735,1829.2,1828.9,6.4277]
[1743646348972,7.3735,1829.2,1829.0,0.12445665]
[1743646349276,4.37373,1829.1,1829.0,0.12445665]
[1743646349761,5.548453,1829.1,1829.0,0.12445665]
[1743646350365,8.548453,1829.1,1829.0,0.2952964]
[1743646350583,8.548453,1829.1,1829.0,0.73946914]
[1743646350785,8.548453,1829.1,1829.0,0.61501249]
[1743646351505,7.37373,1829.1,1829.0,0.72110048]
[1743646352097,7.37373,1829.1,1829.0,0.61501249]
[1743646352304,7.37373,1829.1,1829.0,0.72110048]
[1743646353680,7.37373,1829.1,1829.0,0.61501249]
[1743646353993,13.80183,1829.1,1829.0,2.49e-06]
[1743646354185,16.02169189,1829.1,1829.0,2.49e-06]
[1743646354994,16.02169189,1829.1,1828.8,0.74511399]
[1743646354995,0.7914,1828.8,1828.7,5.52e-06]
[1743646355188,21.25113891,1828.8,1828.7,5.52e-06]
[1743646355400,5.16681,1828.4,1828.3,0.19981119]
[1743646355616,13.14430391,1828.4,1828.3,0.19981119]
[1743646355933,4.37564,1828.3,1828.2,0.40593908]
[1743646356234,4.37564,1828.3,1828.2,0.5182677]
[1743646356532,4.37564,1828.3,1828.2,0.11232862]
[1743646356829,4.3763,1828.1,1827.9,0.19981119]
[1743646357111,4.3763,1828.1,1827.8,0.19981119]
[1743646357295,8.75195,1828.2,1827.8,0.19981119]
[1743646357496,4.37617,1828.1,1827.8,0.19981119]
[1743646357899,4.37617,1828.1,1827.9,0.27348165]
[1743646359012,4.37636,1828.0,1827.7,0.8627031]
[1743646359323,4.37668,1827.9,1827.7,0.808]
[1743646359920,4.37636,1828.0,1827.7,0.808]
[1743646360247,4.37636,1828.0,1827.8,0.27349693]
[1743646361247,8.75295,1828.0,1827.8,0.27349693]
[1743646361442,8.75295,1828.0,1827.9,0.27349693]
[1743646361748,4.37545,1828.4,1828.0,0.7638]
[1743646361910,4.37609,1828.2,1828.0,0.7638]
[1743646362115,4.37636,1828.0,1827.9,0.27349693]
[1743646362335,4.37636,1828.0,1827.9,0.38888225]
[1743646362938,4.37636,1828.0,1827.9,0.11538532]
[1743646363952,4.37612,1828.1,1827.9,0.11538532]
[1743646364252,8.75238,1828.1,1827.9,0.11538532]
[1743646364723,4.37636,1828.0,1827.9,0.11538532]
[1743646365455,4.37661,1827.9,1827.7,0.27349693]
[1743646366330,4.37636,1828.0,1827.8,0.17093362]
[1743646366730,8.75283,1828.0,1827.8,0.17093362]
[1743646367429,8.75283,1828.0,1827.7,0.17093362]
[1743646367954,4.37617,1828.1,1827.7,0.17093362]
[1743646368164,4.37617,1828.1,1827.7,0.34186719]
[1743646368354,8.75252,1828.1,1827.8,0.28931153]
[1743646369359,8.75252,1828.1,1827.8,0.4602451]
[1743646369548,8.75252,1828.1,1827.9,0.17093362]
[1743646369724,8.75252,1828.1,1828.0,0.11748106]
[1743646371741,4.3764,1828.0,1827.8,0.17093362]
[1743646371946,4.3764,1828.0,1827.9,0.11812517]
[1743646373273,4.37617,1828.1,1827.9,0.11812517]
[1743646373574,8.75253,1828.1,1827.9,0.11812517]
[1743646373868,8.75253,1828.1,1827.9,0.28905879]
[1743646374274,4.37636,1828.0,1827.9,0.28905879]
[1743646376369,4.37636,1828.0,1827.9,0.11812517]
[1743646377458,4.37636,1828.0,1827.7,0.17093357]
[1743646377770,4.37636,1828.0,1827.8,0.11446483]
[1743646379280,4.3766,1827.9,1827.8,0.11446483]
[1743646380239,5.14486,1828.0,1827.8,0.11446483]
[1743646380752,4.3766,1827.9,1827.8,0.11446483]
[1743646380949,9.52145,1828.0,1827.8,0.11446483]
[1743646381739,8.75295,1828.0,1827.8,0.2853984]
[1743646382245,4.3766,1827.9,1827.8,0.2853984]
[1743646382567,4.37647,1828.0,1827.8,0.2853984]
[1743646383183,8.75307,1828.0,1827.8,0.2853984]
[1743646383342,8.75307,1828.0,1827.9,0.17093138]
[1743646383541,8.75307,1828.0,1827.9,0.28562596]
[1743646383855,4.37647,1828.0,1827.9,0.28562596]
[1743646384346,4.37647,1828.0,1827.9,0.45655953]
[1743646384541,4.37647,1828.0,1827.9,0.73003805]
[1743646385240,4.37647,1828.0,1827.9,0.61534347]
[1743646385440,5.251732,1828.0,1827.9,0.61534347]
[1743646385674,5.251732,1828.0,1827.9,0.34186495]
[1743646385881,4.37647,1828.0,1827.9,0.45690755]
[1743646387884,4.37647,1828.0,1827.9,0.73039993]
[1743646388604,4.37647,1828.0,1827.9,1.00388679]
[1743646390907,3.0,1828.3,1827.9,1.00388679]
[1743646391094,4.37477,1828.7,1828.0,0.82490887]
[1743646391411,4.812407,1828.6,1828.1,9.97893027]
[1743646391597,4.37528,1828.5,1828.1,10.4233507]
[1743646391794,4.37528,1828.5,1828.1,10.47804481]
[1743646392011,4.37528,1828.5,1828.2,0.44442376]
[1743646392306,9.187517,1828.6,1828.3,0.11370241]
[1743646392608,4.812407,1828.6,1828.3,0.11370241]
[1743646392813,4.37493,1828.6,1828.3,0.55812284]
[1743646392986,7.37469,1828.7,1828.3,0.55812284]
[1743646393308,7.37469,1828.7,1828.4,0.44442376]
[1743646393481,7.37469,1828.7,1828.5,0.11149807]
[1743646393880,7.37469,1828.7,1828.5,0.28243164]
[1743646394304,7.37469,1828.7,1828.6,0.17093138]
[1743646394620,7.37469,1828.7,1828.6,0.28195432]
[1743646395322,7.37469,1828.7,1828.6,0.11102294]
[1743646396934,11.7496,1828.7,1828.4,0.17093357]
[1743646397235,11.7496,1828.7,1828.5,0.11130731]
[1743646397835,0.7739,1828.8,1828.5,0.11130731]
[1743646397996,3.7739,1828.8,1828.5,0.11130731]
[1743646398433,0.7739,1828.8,1828.5,0.11130731]
[1743646398943,4.3747,1828.7,1828.5,0.11130731]
[1743646399465,7.37493,1828.6,1828.5,0.11130731]
[1743646399736,4.37517,1828.5,1828.4,0.17093357]
[1743646400531,11.82524168,1828.5,1828.4,0.17093357]
[1743646400828,12.60304168,1828.5,1828.4,0.17093357]
[1743646401208,4.37541,1828.4,1828.3,0.17089826]
[1743646401409,6.07325517,1828.4,1828.3,0.17089826]
[1743646401809,9.61313159,1828.4,1828.3,0.17089826]
[1743646402005,4.37612,1828.1,1828.0,0.17093357]
[1743646402533,4.37612,1828.1,1827.2,3.0]
[1743646402835,4.38044,1826.3,1826.2,0.55]
[1743646403021,35.6561493,1826.3,1826.2,0.55]
[1743646403194,4.38044,1826.3,1826.2,0.55]
[1743646403399,0.8117,1826.5,1826.2,0.55]
[1743646403713,4.37956,1826.7,1826.2,0.55]
[1743646404019,3.53987642,1826.5,1826.2,0.55]
[1743646404398,7.91985642,1826.5,1826.2,0.55]
[1743646405530,7.91985642,1826.5,1826.2,0.6951]
[1743646405748,8.42092423,1826.5,1826.2,0.6951]
[1743646406210,4.04094423,1826.5,1826.2,5.1305165]
[1743646406536,4.04094423,1826.7,1826.2,9.5111765]
[1743646406836,4.04094423,1826.8,1826.3,10.03929]
[1743646407045,4.04094423,1826.8,1826.4,0.05474394]
[1743646407542,4.04094423,1826.8,1826.4,4.43493394]
[1743646408330,4.04094423,1826.8,1826.4,0.05474394]
[1743646408532,4.04094423,1826.8,1826.4,4.43491394]
[1743646408738,4.37902,1826.9,1826.4,4.43491394]
[1743646409748,7.37876,1827.0,1826.4,4.43491394]
[1743646410547,4.37901,1826.9,1826.4,0.05474394]
[1743646410716,3.0,1827.0,1826.3,5.659]
[1743646410917,7.78333061,1827.1,1826.6,4.37972]
[1743646411241,7.78333061,1827.1,1826.6,4.43445925]
[1743646411855,4.37877,1827.0,1826.5,8.75992]
[1743646412148,4.37877,1827.0,1826.5,4.37996]
[1743646412352,4.37877,1827.0,1826.5,8.75992]
[1743646413045,4.37877,1827.0,1826.5,4.37996]
[1743646413250,7.78333061,1827.1,1826.6,4.43445929]
[1743646414559,7.78333061,1827.1,1826.6,8.81395929]
[1743646414763,7.78333061,1827.1,1826.6,4.43423929]
[1743646414930,7.78333061,1827.1,1826.6,8.81384929]
[1743646415235,7.78333061,1827.1,1826.6,4.43423929]
[1743646415429,7.78333061,1827.1,1826.6,8.81384929]
[1743646415863,7.37853,1827.1,1826.6,8.81384929]
[1743646418233,4.37853,1827.1,1826.6,8.81384929]
[1743646418735,4.37886,1827.0,1826.4,4.52516]
[1743646419041,9.196126,1826.9,1826.4,4.52516]
[1743646419535,0.437886,1826.9,1826.6,4.37954]
[1743646419735,3.0,1827.0,1826.6,4.37954]
[1743646420065,7.37882,1827.0,1826.6,4.37954]
[1743646420365,7.37882,1827.0,1826.6,4.32954]
[1743646420525,4.37872,1827.1,1826.6,4.32954]
[1743646420732,4.37889,1827.0,1826.4,8.95990284]
[1743646421032,4.37889,1827.0,1826.6,4.37968]
[1743646421231,4.37889,1827.0,1826.6,4.43441992]
[1743646421463,4.37889,1827.0,1826.6,4.37968]
[1743646422162,4.37889,1827.0,1826.5,4.37983]
[1743646422359,4.37889,1827.0,1826.5,8.75968]
[1743646423291,4.37889,1827.0,1826.6,0.05473993]
[1743646423483,4.37889,1827.0,1826.2,0.55]
[1743646423484,4.38044,1826.3,1826.2,0.55]
[1743646423634,11.42138423,1826.3,1826.2,0.55]
[1743646424035,11.42138423,1826.3,1826.2,0.5]
[1743646424234,13.07779265,1826.3,1826.2,0.5]
[1743646424745,13.48686041,1826.3,1826.2,0.5]
[1743646429678,12.99453557,1826.3,1826.2,0.5]
[1743646432878,4.38068,1826.2,1826.1,0.1]
[1743646439080,7.92929939,1826.2,1826.1,0.1]
[1743646439277,3.40906776,1826.3,1826.1,0.1]
[1743646439467,3.40906776,1826.3,1826.1,0.22359352]
[1743646439649,7.78953776,1826.3,1826.1,0.1]
[1743646439855,7.78953776,1826.3,1826.2,0.12305459]
[1743646440387,4.38068,1826.2,1826.1,0.1]
[1743646440760,3.0,1826.3,1826.1,0.1]
[1743646441292,3.54861939,1826.7,1826.2,0.1451]
[1743646441453,3.0,1826.5,1826.2,4.52575]
[1743646441659,10.92872939,1826.5,1826.2,0.1451]
[1743646441859,4.3802,1826.4,1826.2,0.1451]
[1743646443292,4.38068,1826.2,1826.1,0.1]
[1743646445894,4.38044,1826.3,1826.1,0.1]
[1743646446059,4.38044,1826.3,1826.1,0.2451]
[1743646446264,4.3801,1826.5,1826.1,0.2451]
[1743646446466,4.37976,1826.6,1826.1,4.6807453]
[1743646446665,4.37976,1826.6,1826.1,9.0068]
[1743646447398,4.37976,1826.6,1826.1,9.00672]
[1743646448069,4.37976,1826.6,1826.2,4.38067]
[1743646448269,3.0,1826.7,1826.3,4.38039]
[1743646448463,4.37925,1826.8,1826.4,0.1451]
[1743646448871,4.37925,1826.8,1826.4,4.52527]
[1743646450314,4.37925,1826.8,1826.4,0.1451]
[1743646450609,4.37925,1826.8,1826.4,4.52524]
[1743646450816,3.0,1826.8,1826.4,4.57998655]
[1743646451012,3.0,1826.8,1826.4,4.52524]
[1743646451219,3.0,1826.8,1826.4,4.57998603]
[1743646451898,3.0,1826.8,1826.4,4.52524]
[1743646452148,3.0,1826.8,1826.4,4.57998597]
[1743646452904,7.37927,1826.8,1826.4,4.57998597]
[1743646453101,7.37927,1826.8,1826.4,0.1451]
[1743646453348,11.75873,1826.8,1826.4,0.1451]
[1743646453707,7.37927,1826.8,1826.4,0.1451]
[1743646454855,11.75873,1826.8,1826.4,0.1451]
[1743646455005,4.37958,1826.7,1826.4,0.1451]
[1743646455805,7.37927,1826.8,1826.4,0.1451]
[1743646456056,11.75873,1826.8,1826.4,0.1451]
[1743646457306,12.934603,1826.8,1826.4,0.1451]
[1743646463556,4.37949,1826.7,1826.4,0.1451]
[1743646465874,5.555143,1826.8,1826.4,4.5799762]
[1743646465875,4.37927,1826.8,1826.4,4.5799762]
[1743646467057,4.37927,1826.8,1826.4,0.1451]
[1743646467275,4.37948,1826.7,1826.4,0.1451]
[1743646468874,8.75873,1826.8,1826.4,0.1451]
[1743646471276,8.75873,1826.8,1826.4,4.52528]
[1743646471277,4.37927,1826.8,1826.4,4.52528]
[1743646471580,4.37927,1826.8,1826.4,4.58002623]
[1743646471761,3.0,1827.0,1826.8,0.1451]
[1743646471960,4.379,1826.9,1826.8,0.1451]
[1743646472153,4.379,1826.9,1826.6,0.1451]
[1743646472341,4.37924,1826.8,1826.6,0.1451]
[1743646472542,1.175776,1826.9,1826.5,9.85081]
[1743646472781,7.37896,1827.0,1826.5,9.90555232]
[1743646473082,7.37896,1827.0,1826.6,4.37969]
[1743646473455,5.61810457,1827.2,1826.7,0.1451]
[1743646473639,4.37853,1827.1,1826.7,4.57930899]
[1743646473968,4.37853,1827.1,1826.7,4.52457]
[1743646474878,4.37853,1827.1,1826.7,8.90404]
[1743646476142,4.37853,1827.1,1826.7,4.52457]
[1743646476790,5.336262,1827.1,1826.7,4.52457]
[1743646480683,0.8062,1827.6,1826.8,0.1451]
[1743646480982,5.18371,1827.6,1827.2,0.1451]
[1743646481168,3.0,1827.5,1827.2,0.1451]
[1743646481348,7.37756,1827.5,1827.2,0.1451]
[1743646481550,5.18371,1827.6,1827.2,0.1451]
[1743646481775,5.702081,1827.6,1827.2,0.1451]
[1743646482373,4.378,1827.4,1827.2,0.1451]
[1743646482669,8.75738,1827.1,1826.8,0.1451]
[1743646483584,4.37863,1827.1,1826.8,0.1451]
[1743646483771,4.37877,1827.0,1826.8,0.1451]
[1743646484369,4.37863,1827.1,1826.8,0.1451]
[1743646484878,4.37828,1827.2,1826.8,4.52426]
[1743646485551,4.37828,1827.2,1826.8,0.1451]
[1743646485746,4.37863,1827.1,1826.8,0.1451]
[1743646486464,8.7567,1827.2,1826.8,0.1451]
[1743646486875,4.37867,1827.1,1826.8,0.1451]
[1743646487872,4.37914,1826.9,1826.6,0.1451]
[1743646488450,4.37876,1827.0,1826.6,0.1451]
[1743646488656,4.71982294,1827.2,1826.6,0.1451]
[1743646488851,4.71982294,1827.2,1826.7,4.37934]
[1743646488852,3.0,1827.0,1826.7,4.37934]
[1743646489805,3.0,1827.0,1826.6,4.57950965]
[1743646490103,3.0,1827.0,1826.6,4.52477]
[1743646490703,7.37886,1827.0,1826.6,0.1451]
[1743646491306,3.0,1827.0,1826.6,4.5794297]
[1743646491492,4.37897,1827.0,1826.6,0.1451]
[1743646492601,4.37897,1827.0,1826.6,4.5248]
[1743646492802,7.37897,1827.0,1826.6,4.5248]
[1743646493714,7.37897,1827.0,1826.6,4.5795397]
[1743646494305,3.0,1827.0,1826.6,4.5795397]
[1743646494682,3.0,1827.0,1826.6,4.5248]
[1743646494923,7.37877,1827.0,1826.6,0.1451]
[1743646496685,7.37877,1827.0,1826.6,4.5248]
[1743646496686,11.75774,1827.0,1826.6,4.5248]
[1743646496884,11.75774,1827.0,1826.6,0.1451]
[1743646497084,4.37903,1826.9,1826.6,0.1451]
[1743646497424,7.37877,1827.0,1826.6,0.1451]
[1743646497623,7.37877,1827.0,1826.6,4.57942972]
[1743646497831,3.0,1827.0,1826.7,4.37941]
[1743646498182,3.0,1827.0,1826.6,4.57942972]
[1743646498398,3.0,1827.0,1826.6,4.52469]
[1743646498627,7.3788,1827.0,1826.6,4.52469]
[1743646498828,7.3788,1827.0,1826.6,4.57942972]
[1743646499523,7.3788,1827.0,1826.6,8.95902972]
[1743646499708,7.3788,1827.0,1826.6,4.57942972]
[1743646500226,7.3788,1827.0,1826.6,0.1451]
[1743646500397,4.37913,1826.9,1826.6,0.1451]
[1743646501083,7.3788,1827.0,1826.6,0.1451]
[1743646501717,8.7593,1826.7,1826.4,0.1451]
[1743646501937,4.38011,1826.5,1826.1,41.146]
[1743646502089,4.38011,1826.5,1826.1,0.1]
[1743646502284,4.38011,1826.5,1826.1,4.4808]
[1743646502523,4.38011,1826.5,1826.1,4.53555559]
[1743646502820,4.38011,1826.5,1826.1,4.4808]
[1743646503025,7.37974,1826.6,1826.2,4.38067]
[1743646503326,3.0,1826.7,1826.3,4.43517353]
[1743646503496,4.37987,1826.6,1826.3,5.469]
[1743646503701,4.37994,1826.6,1826.3,5.469]
[1743646503928,4.38007,1826.5,1826.3,5.469]
[1743646504129,4.3802,1826.4,1826.2,0.1451]
[1743646504432,4.38044,1826.3,1826.1,0.1]
[1743646505133,4.3802,1826.4,1826.1,0.1]
[1743646505833,4.38058,1826.3,1826.1,0.1]
[1743646505991,4.38068,1826.2,1826.1,0.1]
[1743646506419,4.38058,1826.3,1826.1,0.1]
[1743646506732,4.38068,1826.2,1826.1,0.1]
[1743646507923,4.38006,1826.5,1826.1,0.1]
[1743646508310,5.17636,1826.6,1826.1,4.4809]
[1743646508512,8.75972,1826.6,1826.3,0.1451]
[1743646508712,4.37976,1826.6,1826.3,0.1451]
[1743646509104,4.38016,1826.5,1826.1,0.2451]
[1743646509423,4.38016,1826.5,1826.1,4.62597]
[1743646509825,4.37975,1826.6,1826.1,9.00668]
[1743646510126,4.3796,1826.7,1826.3,0.1451]
[1743646510297,4.37924,1826.8,1826.3,5.47]
[1743646510622,8.76034,1826.5,1826.3,5.47]
[1743646511226,4.3802,1826.4,1826.3,5.47]
[1743646511528,4.38016,1826.5,1826.3,5.47]
[1743646511718,8.76034,1826.5,1826.3,5.47]
[1743646511913,4.38016,1826.5,1826.3,5.47]
[1743646512121,8.76034,1826.5,1826.3,5.47]
[1743646512423,5.256194,1826.5,1826.1,0.2451]
[1743646512732,4.38031,1826.4,1826.1,0.2451]
[1743646513496,8.75987,1826.6,1826.1,4.62598]
[1743646513691,7.37951,1826.7,1826.2,4.38065]
[1743646513887,4.37938,1826.8,1826.4,4.38019]
[1743646514115,8.75876,1826.8,1826.3,4.52542]
[1743646514521,4.37938,1826.8,1826.4,9.90492517]
[1743646514726,4.37938,1826.8,1826.5,0.1451]
[1743646515039,4.37858,1827.1,1826.6,4.43431304]
[1743646515422,4.3788,1827.0,1826.6,4.43431304]
[1743646515819,4.3788,1827.0,1826.6,0.05474304]
[1743646516737,4.37907,1826.9,1826.6,0.05474304]
[1743646517445,4.3788,1827.0,1826.6,0.05474304]
[1743646517601,8.75779,1827.0,1826.6,0.05474304]
[1743646519317,4.37902,1826.9,1826.5,4.52503]
[1743646519828,4.37902,1826.9,1826.6,0.0547398]
[1743646520031,4.37902,1826.9,1826.5,4.52503]
[1743646520533,4.37902,1826.9,1826.6,0.05473981]
[1743646520739,4.37902,1826.9,1826.5,4.52503]
[1743646521032,4.37902,1826.9,1826.5,0.1451]
[1743646521240,4.37902,1826.9,1826.5,4.52505]
[1743646521442,4.37963,1826.7,1826.3,0.1451]
[1743646521643,4.38008,1826.5,1826.3,0.1451]
[1743646522338,8.75978,1826.6,1826.3,0.1451]
[1743646523401,4.37996,1826.5,1826.3,0.1451]
[1743646524518,8.76015,1826.5,1826.2,5.469]
[1743646524839,4.38022,1826.4,1826.2,5.469]
[1743646525058,4.38022,1826.4,1826.1,0.1]
[1743646525059,4.38068,1826.2,1826.1,0.1]
[1743646525210,4.660715,1826.4,1826.1,0.1]
[1743646525211,4.38059,1826.3,1826.1,0.1]
[1743646525408,4.38051,1826.3,1826.1,0.1]
[1743646526305,4.3795,1826.7,1826.2,0.1451]
[1743646526510,3.0,1826.6,1826.2,4.52567]
[1743646526705,3.0,1826.6,1826.2,9.99467]
[1743646527250,7.3798,1826.6,1826.2,9.99467]
[1743646527684,4.37971,1826.7,1826.2,14.37523]
[1743646528270,4.37971,1826.7,1826.3,0.05474798]
[1743646528456,4.37971,1826.7,1826.2,14.37523]
[1743646529270,8.75937,1826.7,1826.2,14.37523]
[1743646529570,4.37966,1826.7,1826.2,14.37523]
[1743646530738,4.37966,1826.7,1826.3,4.43513798]
[1743646530938,8.15978,1826.8,1826.3,8.81539798]
[1743646531138,8.15978,1826.8,1826.3,8.7606]
[1743646531335,12.53925,1826.8,1826.3,4.38026]
[1743646531839,4.37948,1826.7,1826.2,9.99474]
[1743646532057,8.15978,1826.8,1826.3,4.43500804]
[1743646532372,8.15978,1826.8,1826.3,4.38026]
[1743646532560,4.37953,1826.7,1826.3,4.38026]
[1743646534182,4.37953,1826.7,1826.3,4.43500781]
[1743646534487,4.37953,1826.7,1826.3,4.38026]
[1743646535288,8.75924,1826.7,1826.2,9.99476]
[1743646535489,4.38021,1826.4,1826.2,0.1451]
[1743646535784,4.38008,1826.5,1826.2,0.1451]
[1743646537157,4.38025,1826.4,1826.2,0.1451]
[1743646538786,4.38025,1826.4,1826.1,0.1]
[1743646538983,4.38057,1826.3,1826.1,0.1]
[1743646539157,5.14727,1826.3,1826.1,0.1]
[1743646539555,4.38068,1826.2,1826.1,0.1]
[1743646539969,5.14727,1826.3,1826.1,0.1]
[1743646540302,4.38057,1826.3,1826.1,0.1]
[1743646540452,7.92811939,1826.7,1826.1,4.6259]
[1743646540453,4.37994,1826.6,1826.1,4.6259]
[1743646540657,3.514664,1826.6,1826.2,4.38057]
[1743646541356,7.894424,1826.6,1826.1,0.2451]
[1743646541584,4.37997,1826.5,1826.1,4.62597]
[1743646541784,7.894424,1826.6,1826.1,4.62597]
[1743646541952,4.3794,1826.8,1826.3,4.3804]
[1743646542179,4.37952,1826.7,1826.4,0.1451]
[1743646542800,8.75923,1826.7,1826.4,0.1451]
[1743646542999,4.37978,1826.6,1826.4,0.1451]
[1743646543176,4.37952,1826.7,1826.4,0.1451]
[1743646546498,4.37972,1826.6,1826.4,0.1451]
[1743646547999,4.37952,1826.7,1826.4,0.1451]
[1743646550021,0.823,1826.9,1826.4,4.57982744]
[1743646550228,3.0,1826.8,1826.4,8.95992744]
[1743646550376,3.0,1826.8,1826.4,4.52508]
[1743646550897,7.37925,1826.8,1826.4,4.52508]
[1743646552015,7.37925,1826.8,1826.4,4.57982472]
[1743646552425,3.0,1826.8,1826.6,4.37963]
[1743646552718,4.3795,1826.7,1826.4,0.1451]
[1743646554323,4.3795,1826.7,1826.4,5.6121]
[1743646554484,7.37941,1826.8,1826.4,5.6121]
[1743646554809,3.0,1826.8,1826.4,10.04685477]
[1743646555626,3.0,1826.8,1826.4,14.42693477]
[1743646555813,3.0,1826.8,1826.4,9.99211]
[1743646555979,7.37926,1826.8,1826.4,9.99211]
[1743646556179,7.37926,1826.8,1826.4,10.04685477]
[1743646556510,7.37925,1826.8,1826.4,9.99211]
[1743646556702,3.0,1826.8,1826.4,14.37219]
[1743646556899,5.13705,1827.1,1826.4,5.6121]
[1743646557091,7.37892,1827.0,1826.6,4.37948]
[1743646557407,4.37911,1826.9,1826.4,9.99225]
[1743646557911,4.37936,1826.8,1826.4,9.99224903]
[1743646558310,4.37948,1826.7,1826.4,5.61209903]
[1743646559120,4.37948,1826.7,1826.4,5.66684388]
[1743646559416,4.37948,1826.7,1826.4,5.61209903]
[1743646560823,5.18486,1826.8,1826.4,5.61209903]
[1743646561610,4.37986,1826.6,1826.4,5.467]
[1743646561794,4.37996,1826.5,1826.1,9.9467]
[1743646562130,4.38036,1826.4,1826.1,5.566]
[1743646562479,4.38044,1826.3,1826.1,0.1]
[1743646562679,4.38068,1826.2,1826.1,0.1]
[1743646562915,6.024892,1826.2,1826.1,0.1]
[1743646566456,4.38044,1826.3,1826.1,0.1]
[1743646566926,8.761,1826.3,1826.1,0.1]
[1743646567545,8.7611,1826.3,1826.1,0.1]
[1743646567744,3.0,1826.3,1826.1,0.1]
[1743646567921,0.7572,1826.6,1826.3,4.3803]
[1743646568121,0.7572,1826.8,1826.4,4.43482407]
[1743646568327,8.13657,1826.8,1826.4,0.05474587]
[1743646568639,8.13657,1826.8,1826.4,4.38017]
[1743646568834,4.37913,1826.9,1826.4,4.38]
[1743646569040,4.37913,1826.9,1826.6,0.1451]
[1743646569918,8.75832,1826.9,1826.6,0.1451]
[1743646570123,4.37984,1826.6,1826.2,5.6121]
[1743646570319,3.7784,1826.6,1826.1,0.1]
[1743646570543,8.7611,1826.3,1826.1,0.1]
[1743646570850,4.38055,1826.3,1826.1,0.1]
[1743646571431,8.76113,1826.3,1826.1,0.1]
[1743646571653,4.38055,1826.3,1826.1,0.1]
[1743646573752,4.38014,1826.5,1826.1,0.1]
[1743646573753,3.0,1826.4,1826.1,0.1]
[1743646573927,7.38022,1826.4,1826.1,0.1]
[1743646574361,4.3797,1826.7,1826.2,4.58030884]
[1743646574563,4.3797,1826.7,1826.3,9.84644]
[1743646574737,4.3797,1826.7,1826.3,5.466]
[1743646575064,4.37974,1826.6,1826.3,5.466]
[1743646577069,4.3797,1826.7,1826.3,9.90107812]
[1743646577851,7.37926,1826.8,1826.3,9.90107812]
[1743646578050,7.37926,1826.8,1826.3,9.84633]
[1743646578252,7.37926,1826.8,1826.4,4.38019]
[1743646578638,4.37926,1826.8,1826.4,4.38019]
[1743646578862,9.52776,1826.9,1826.4,4.43493495]